fUSD/lending_fUSD_20240419
["ID","MTS","AMOUNT","RATE_DAILY","PERIOD"]
[322918412,1713501055109,-3569.36,0.00016438,2]
[322918413,1713501055119,-1586.31,0.00016438,2]
[322918414,1713501055129,-500.0,0.00016438,2]
[322918415,1713501055138,-735.0,0.00016438,2]
[322918416,1713501055147,-1655.71,0.00016438,2]
[322918417,1713501055157,-1820.58,0.00016438,2]
[322918418,1713501055166,-500.0,0.00016438,2]
[322918419,1713501055176,-736.74,0.00016438,2]
[322918420,1713501055185,-964.62192884,0.00016438,2]
[322918421,1713501056914,-453.32000598,0.00016436,2]
[322918422,1713501056940,-255.637,0.00016436,2]
[322918423,1713501056954,-410.530046,0.00016436,2]
[322918424,1713501056964,-141.09478458,0.00016437,2]
[322918425,1713501057101,-365.92399828,0.00016437,2]
[322918426,1713501057111,-1715.07807116,0.00016438,2]
[322918427,1713501057120,-575.08,0.00016438,2]
[322918428,1713501057130,-110.73016771,0.00016438,2]
[322918429,1713501057619,-911.29983229,0.00016438,2]
[322918430,1713501057629,-991.58255711,0.00016438,2]
[322918433,1713501093485,152.36,0.0001611,15]
[322918436,1713501250405,344.82,0.00015436,2]
[322918437,1713501315035,240.88,0.00015384,2]
[322918438,1713501417453,559.97,0.00015357,2]
[322918439,1713501447648,73054.637395,0.00015,10]
[322918440,1713501527155,418.42,0.00013419,2]
[322918441,1713501591438,152.36,0.0001611,15]
[322918442,1713501658881,500.0,0.00015311,2]
[322918445,1713501878455,552.02,0.00015344,2]
[322918446,1713501886406,229.88,0.00015344,2]
[322918447,1713501986541,-192.65574287,0.00015681,2]
[322918448,1713501986578,-8982.94606647,0.00015682,7]
[322918449,1713501993201,-192.65574287,0.00015682,7]
[322918451,1713502014279,397.49,0.00013406,2]
[322918452,1713502014473,397.49,0.0001567,2]
[322918453,1713502037528,8187.96606647,0.00015578,7]
[322918454,1713502037553,987.63574287,0.00015578,7]
[322918455,1713502055532,7091.18690442,0.00015578,7]
[322918456,1713502149523,152.36,0.0001611,15]
[322918472,1713502232045,-575.2521287,0.00015789,2]
[322918473,1713502232057,-1079.20673344,0.00015789,2]
[322918474,1713502232121,-671.87113786,0.00015789,2]
[322918475,1713502232130,-779.32236212,0.00015791,2]
[322918476,1713502232207,-2103.84214108,0.00015791,2]
[322918477,1713502232218,-833.0914968,0.00015791,2]
[322918478,1713502232227,-934.8719962,0.00015834,2]
[322918479,1713502232239,-2789.7210038,0.00015834,2]
[322918480,1713502232248,-150.0,0.00015886,2]
[322918481,1713502232257,-147.8121556,0.00015886,2]
[322918482,1713502232269,-2.1878444,0.00015886,2]
[322918483,1713502232278,-2555.12353379,0.00015887,2]
[322918484,1713502232296,-1053.14346621,0.00015887,2]
[322918485,1713502232305,-240.30667054,0.00015948,2]
[322918486,1713502232317,-155.66332946,0.00015948,2]
[322918487,1713502232326,-3600.366,0.00015948,2]
[322918488,1713502232335,-1250.0,0.00016,2]
[322918489,1713502232345,-2326.33,0.00016,2]
[322918490,1713502232354,-3600.377,0.00016031,2]
[322918491,1713502232363,-3696.068,0.00016077,2]
[322918492,1713502232373,-150.0,0.000161,2]
[322918493,1713502232383,-7929.18048986,0.000161,2]
[322918494,1713502232393,-150.37,0.000161,2]
[322918495,1713502232402,-835.77757049,0.00016109,2]
[322918496,1713502232411,-800.0,0.00016113,2]
[322918497,1713502232420,-2100.0,0.00016113,2]
[322918499,1713502232430,-500.0,0.00016113,2]
[322918500,1713502232439,-500.0,0.00016113,2]
[322918503,1713502232449,-1369.0,0.00016137,2]
[322918505,1713502232460,-219.484692,0.00016164,2]
[322918507,1713502232469,-644.4852,0.000162,2]
[322918509,1713502232479,-422.21,0.00016219,2]
[322918511,1713502232488,-212.33628,0.0001627,2]
[322918512,1713502232497,-2141.0,0.000163,2]
[322918513,1713502232506,-500.0,0.000163,2]
[322918514,1713502232516,-1608.1306,0.000163,2]
[322918515,1713502232525,-670.0,0.000163,2]
[322918516,1713502232536,-57841.2888,0.000163,2]
[322918517,1713502232545,-200.0,0.00016307,2]
[322918518,1713502232554,-500.0,0.00016307,2]
[322918519,1713502232563,-2326.33,0.0001632,2]
[322918520,1713502232572,-2326.33,0.0001632,2]
[322918521,1713502232582,-279.03864264,0.00016337,5]
[322918522,1713502232591,-18419.11915568,0.00016338,2]
[322918523,1713502232600,-237.52483588,0.00016338,2]
[322918524,1713502232609,-528.51688872,0.00016338,2]
[322918525,1713502232619,-1874.0979,0.00016338,2]
[322918526,1713502232628,-22435.575,0.00016338,2]
[322918527,1713502232638,-525.3075,0.00016338,2]
[322918528,1713502232648,-2326.33,0.0001635,2]
[322918529,1713502232657,-2458.20271411,0.00016374,2]
[322918531,1713502232666,-521.0,0.00016384,2]
[322918532,1713502232675,-160.29,0.0001639,2]
[322918533,1713502232685,-193.9896775,0.00016398,2]
[322918534,1713502232694,-56133.43454659,0.000164,3]
[322918535,1713502232747,-1620.97513794,0.000164,3]
[322918536,1713502232758,-2714.49042453,0.000164,3]
[322918537,1713502232795,-3675.55487343,0.000164,3]
[322918538,1713502232806,-4393.99559427,0.000164,3]
[322918539,1713502232818,-2760.17266041,0.000164,3]
[322918579,1713502238255,-398.01888896,0.000164,3]
[322918580,1713502238316,-62767.40650287,0.000164,3]
[322918581,1713502238419,-63552.33514983,0.000164,3]
[322918582,1713502238475,-8099.0748233,0.000164,3]
[322918601,1713502240119,-649.9975,0.000164,3]
[322918602,1713502240149,-8165.80375038,0.000164,3]
[322918603,1713502240202,-2505.8,0.000164,3]
[322918604,1713502240213,-1971.98575781,0.000164,3]
[322918605,1713502240224,-1694.49329322,0.000164,3]
[322918606,1713502241215,-568.37329392,0.000164,3]
[322918613,1713502243269,-498.99000028,0.000164,3]
[322918614,1713502243324,-999.02251372,0.000164,3]
[322918615,1713502243336,-680.35670709,0.000164,3]
[322918616,1713502243382,-880.21195323,0.000164,3]
[322918617,1713502243395,-14956.08179818,0.000164,3]
[322918618,1713502243545,-386.95049421,0.000164,3]
[322918622,1713502243598,-5067.11328588,0.000164,3]
[322918625,1713502246158,-523.0,0.00016164,2]
[322918626,1713502246168,-246.13584076,0.000164,3]
[322918627,1713502246179,-2716.23987609,0.000164,3]
[322918628,1713502248613,-250896.80706496,0.000164,3]
[322918632,1713502314596,1096.77916205,0.0001539,2]
[322918633,1713502314620,7204.83310502,0.0001539,2]
[322918637,1713502406667,230.49,0.00015413,2]
[322918638,1713502441109,558.38,0.00015421,2]
[322918639,1713502470077,-706.16360927,0.00016026,2]
[322918640,1713502470103,-293.83639073,0.00016026,2]
[322918641,1713502470843,-1000.0,0.00016026,2]
[322918642,1713502471916,-291.20013048,0.00016026,2]
[322918643,1713502471939,-708.79986952,0.00016027,2]
[322918644,1713502473657,-291.20013048,0.00016027,2]
[322918645,1713502495774,399.54,0.00013519,2]
[322918646,1713502495979,309.25986952,0.00015782,2]
[322918647,1713502496002,90.28013048,0.00015782,2]
[322918649,1713502521972,270.334133,0.0001589,2]
[322918651,1713502597550,261.25907887,0.0001589,2]
[322918652,1713502598729,171.58,0.0001543,2]
[322918653,1713502613570,206.54665765,0.0001589,2]
[322918654,1713502613597,11.16924141,0.0001589,2]
[322918655,1713502629283,152.36,0.0001611,15]
[322918656,1713502631552,217.71589906,0.0001543,2]
[322918657,1713502649749,155.0,0.0001543,2]
[322918658,1713502669575,155.0,0.0001543,2]
[322918659,1713502673981,1000.0,0.000282,120]
[322918660,1713502695584,155.0,0.0001543,2]
[322918663,1713502717603,155.0,0.0001543,2]
[322918665,1713502739588,151.11485953,0.0001543,2]
[322918666,1713502739615,3.88514047,0.0001543,2]
[322918668,1713502759579,155.0,0.0001543,2]
[322918670,1713502777835,158.61689723,0.0001543,2]
[322918671,1713502856308,150.0,0.00014885,2]
[322918672,1713502856496,175.52652574,0.00015413,2]
[322918673,1713502864120,174.04,0.00015399,2]
[322918676,1713502915468,150.0,0.00014431,2]
[322918677,1713502915864,200.0,0.00015408,2]
[322918679,1713502975598,150.0,0.00014519,2]
[322918680,1713502981671,153.32,0.00015408,2]
[322918681,1713502992764,553.29,0.00015407,2]
[322918682,1713503000283,359.58,0.0001349,2]
[322918685,1713503089807,765.67045947,0.000224,30]
[322918692,1713503137569,152.36,0.0001611,15]
[322918742,1713503432213,-636.72794742,0.00015752,2]
[322918744,1713503432224,-82.55061258,0.00015752,2]
[322918746,1713503432233,-359.58,0.00015753,2]
[322918748,1713503432242,-361.3113,0.0001589,2]
[322918749,1713503432251,-150.0,0.0001593,2]
[322918750,1713503432261,-598.54827337,0.0001599,2]
[322918751,1713503432275,-700.0,0.0001599,2]
[322918752,1713503432353,-371.6925449,0.0001599,2]
[322918753,1713503432399,-271.05628702,0.0001599,2]
[322918754,1713503432478,-1134.52524659,0.0001599,2]
[322918755,1713503432488,-798.91798867,0.00016,2]
[322918799,1713503438285,-451.08201133,0.00016,2]
[322918801,1713503438295,-4294.10181773,0.00016028,2]
[322918803,1713503438305,-150.0,0.00016029,2]
[322918806,1713503438314,-164.0,0.0001603,2]
[322918808,1713503438324,-3603.811,0.00016095,2]
[322918809,1713503438333,-914.31699133,0.00016113,2]
[322918812,1713503438407,-985.68300867,0.00016113,2]
[322918813,1713503438416,-700.0,0.00016113,2]
[322918814,1713503438426,-1345.0,0.00016164,2]
[322918815,1713503438436,-264.837534,0.00016164,2]
[322918816,1713503438445,-507.63986,0.0001623,2]
[322918817,1713503438455,-3977.25263566,0.00016238,2]
[322918818,1713503438464,-690.0,0.000163,2]
[322918819,1713503438474,-2602.22011383,0.000163,2]
[322918820,1713503438485,-27665.43378617,0.000163,2]
[322918821,1713503438494,-843.0475,0.000163,2]
[322918822,1713503438504,-2042.0,0.000163,2]
[322918823,1713503438513,-699.1722374,0.00016307,2]
[322918824,1713503438649,-300.8277626,0.00016307,2]
[322918825,1713503438658,-500.0,0.00016307,2]
[322918826,1713503438667,-5638.0242374,0.00016322,2]
[322918872,1713503442347,-810.8879,0.000163,2]
[322918873,1713503442356,-139.1617626,0.00016322,2]
[322918874,1713503442366,-766.1890011,0.00016322,2]
[322918881,1713503443672,-341.42630968,0.00016322,2]
[322918882,1713503443689,-2000.26103372,0.00016322,2]
[322918891,1713503446593,-1257.58,0.00016322,2]
[322918892,1713503446649,-1524.5436555,0.00016322,2]
[322918893,1713503446659,-1487.9333765,0.00016322,2]
[322918894,1713503446671,-36181.0666235,0.00016322,2]
[322918895,1713503446680,-2803.263,0.00016322,2]
[322918896,1713503446690,-1055.0,0.00016322,2]
[322918897,1713503446700,-176.40029099,0.00016338,2]
[322918898,1713503446710,-170.66355813,0.00016338,2]
[322918899,1713503446720,-158.34989058,0.00016338,2]
[322918900,1713503446729,-4357.31443184,0.00016338,2]
[322918901,1713503446739,-7500.0,0.00016338,2]
[322918902,1713503446748,-406.66,0.00016389,3]
[322918903,1713503446758,-1000.0,0.0001639,2]
[322918904,1713503446767,-1000.0,0.0001639,2]
[322918905,1713503446777,-1000.0,0.0001639,2]
[322918906,1713503446787,-1000.0,0.0001639,2]
[322918907,1713503446796,-1000.0,0.0001639,2]
[322918908,1713503446806,-1000.0,0.0001639,2]
[322918909,1713503446815,-1000.0,0.0001639,2]
[322918910,1713503446825,-943.0,0.0001639,2]
[322918911,1713503446834,-1000.0,0.0001639,2]
[322918912,1713503446843,-138.70727709,0.0001639,2]
[322918913,1713503447020,155.0,0.00014758,2]
[322918914,1713503448866,442.75887259,0.00014758,2]
[322918915,1713503449041,155.59018608,0.00014758,2]
[322918916,1713503456417,155.51054893,0.00014758,2]
[322918917,1713503498422,2567.09,0.00015441,2]
[322918918,1713503512128,557.36,0.00015428,2]
[322918919,1713503558928,364.81,0.00013483,2]
[322918920,1713503569006,408.41,0.00015395,2]
[322918922,1713503629083,-479.51904,0.00015551,2]
[322918923,1713503629105,-154.72,0.00015552,2]
[322918924,1713503629128,-3757.73056516,0.00015552,2]
[322918925,1713503629150,-269.73,0.00015553,2]
[322918926,1713503629171,-364.81,0.00015747,2]
[322918927,1713503629190,-167.18,0.00015865,2]
[322918928,1713503629214,-2000.0,0.00016,2]
[322918929,1713503629236,-600.0,0.00016113,2]
[322918930,1713503629257,-1600.0,0.00016113,2]
[322918931,1713503629277,-1334.0,0.00016164,2]
[322918932,1713503629297,-150.0,0.00016199,2]
[322918933,1713503629318,-2000.0,0.000162,2]
[322918934,1713503629340,-209.8678,0.00016222,2]
[322918935,1713503629361,-434.5472,0.00016222,2]
[322918936,1713503629381,-507.96981918,0.000163,2]
[322918937,1713503629399,-504.9605,0.000163,2]
[322918938,1713503629771,-202.684286,0.00016307,2]
[322918939,1713503629790,-500.0,0.00016307,2]
[322918940,1713503629811,-762.28078966,0.00016338,2]
[322918941,1713503652128,184.34,0.00015433,2]
[322918942,1713503658963,200.0,0.00015433,2]
[322918943,1713503741718,21090.60005795,0.00026,120]
[322918944,1713503748340,-277.120046,0.0001589,2]
[322918945,1713503748371,-600.0,0.00016113,2]
[322918946,1713503748402,-1400.0,0.00016113,2]
[322918947,1713503748432,-405.5395096,0.00016237,2]
[322918948,1713503748462,-399.5992,0.00016237,2]
[322918949,1713503748493,-363.06901353,0.00016237,2]
[322918950,1713503748524,-156.67498359,0.00016238,2]
[322918951,1713503748554,-2047.0,0.000163,2]
[322918952,1713503748584,-156.67498359,0.0001631,2]
[322918953,1713503748614,-150.0,0.00016337,2]
[322918954,1713503748646,-5180.32226369,0.00016338,2]
[322918955,1713503752183,29360.86591604,0.00027,120]
[322918956,1713503781640,152.36,0.0001611,15]
[322918957,1713503792552,6088.07875288,0.00028208,120]
[322918958,1713503847202,3911.92124712,0.00026,120]
[322918959,1713503862658,4410.2,0.000282,120]
[322918960,1713503878520,250.0,0.00015421,2]
[322918961,1713503906820,181.39,0.00015424,2]
[322918962,1713503913134,774.01,0.00015429,2]
[322918963,1713504028326,328.32,0.00013504,2]
[322918964,1713504072582,554.11,0.00015418,2]
[322918965,1713504074749,1654.1,0.00015418,2]
[322918966,1713504106297,150.0,0.00015415,2]
[322918967,1713504241923,200.0,0.00015416,2]
[322918968,1713504292601,152.36,0.0001611,15]
[322918970,1713504375470,181.39,0.00015419,2]
[322918971,1713504386569,250.0,0.00015415,2]
[322918973,1713504424273,515.67,0.00015411,2]
[322918975,1713504587680,556.71,0.00015411,2]
[322918997,1713504631639,-8154.22042557,0.00015529,2]
[322918998,1713504631649,-208.1911832,0.0001553,2]
[322918999,1713504631658,-154.72,0.00015531,2]
[322919000,1713504631667,-1657.52,0.00015534,2]
[322919001,1713504631677,-328.32,0.00015767,2]
[322919002,1713504631686,-593.25473653,0.00016,2]
[322919003,1713504631743,-485.45526347,0.00016,2]
[322919004,1713504631752,-500.0,0.00016113,2]
[322919005,1713504631762,-525.0,0.00016137,2]
[322919006,1713504631779,-176.9469,0.0001623,2]
[322919007,1713504631788,-112.59783653,0.000163,2]
[322919008,1713504631799,-27456.91766347,0.000163,2]
[322919009,1713504631808,-1000.0,0.00016337,2]
[322919010,1713504631818,-10941.58950606,0.00016338,2]
[322919011,1713504631828,-2904.8762879,0.00016338,2]
[322919013,1713504631837,-216.53626396,0.00016338,2]
[322919015,1713504631846,-171.6550686,0.00016338,2]
[322919017,1713504631855,-352.34459248,0.00016338,2]
[322919019,1713504631864,-7500.0,0.00016338,2]
[322919021,1713504631873,-813.364847,0.00016382,4]
[322919023,1713504631883,-3902.56037488,0.00016383,2]
[322919025,1713504631892,-507.96981912,0.00016386,2]
[322919026,1713504631902,-861.29272291,0.0001639,2]
[322919027,1713504631911,-1000.0,0.0001639,2]
[322919028,1713504631921,-1000.0,0.0001639,2]
[322919029,1713504631930,-1000.0,0.0001639,2]
[322919030,1713504631940,-698.0,0.0001639,2]
[322919031,1713504631949,-1000.0,0.0001639,2]
[322919032,1713504631958,-1000.0,0.0001639,2]
[322919033,1713504631968,-521.0,0.0001639,2]
[322919034,1713504631978,-173.89523273,0.00016398,2]
[322919035,1713504631987,-725.69073868,0.00016398,2]
[322919036,1713504631997,-711.49518515,0.00016398,2]
[322919037,1713504632007,-2579.91594,0.00016398,2]
[322919038,1713504632016,-314.46827179,0.00016398,2]
[322919039,1713504632028,-174.96491842,0.00016398,2]
[322919040,1713504632037,-468.26256774,0.00016398,2]
[322919041,1713504632047,-550.22850571,0.00016398,2]
[322919042,1713504632057,-277.25469402,0.00016399,2]
[322919043,1713504632066,-15959.44314877,0.00016399,2]
[322919044,1713504632076,-205.18920515,0.00016399,2]
[322919045,1713504632085,-1127.03271038,0.00016399,2]
[322919046,1713504632094,-411.73228964,0.00016399,2]
[322919047,1713504632104,-155.31597305,0.00016399,2]
[322919048,1713504632114,-420.29958115,0.00016399,2]
[322919049,1713504632123,-155.28786113,0.00016399,2]
[322919050,1713504632133,-5539.30222896,0.00016399,2]
[322919051,1713504632142,-30117.2798333,0.00016399,2]
[322919052,1713504632151,-10711.0078704,0.00016399,2]
[322919053,1713504632160,-3743.459938,0.00016399,2]
[322919054,1713504632170,-5009.4370758,0.00016399,2]
[322919055,1713504632179,-24432.5418143,0.00016399,2]
[322919056,1713504632188,-2787.7452861,0.00016399,2]
[322919057,1713504632198,-5586.7778683,0.00016399,2]
[322919058,1713504632207,-2000.0,0.000164,2]
[322919059,1713504632216,-52078.43402513,0.000164,3]
[322919073,1713504637595,-208.1911832,0.00015528,2]
[322919074,1713504637604,-3938.26159319,0.00016338,2]
[322919076,1713504639445,-176.85804555,0.00016338,2]
[322919077,1713504639454,-984.07438366,0.00016338,2]
[322919078,1713504639465,-355.72425126,0.00016338,2]
[322919079,1713504639545,-666.50811388,0.00016338,2]
[322919080,1713504639556,-616.86577662,0.00016338,2]
[322919081,1713504639568,-315.6,0.00016338,2]
[322919082,1713504640388,-311.085,0.00016299,2]
[322919083,1713504640398,-204.015,0.00016338,2]
[322919084,1713504640456,-418.95088139,0.00016338,2]
[322919085,1713504640465,-138.10347599,0.00016389,3]
[322919086,1713504640477,-50.94652401,0.00016389,3]
[322919087,1713504640486,-6499.63592078,0.000164,3]
[322919133,1713504642512,-471.441,0.000164,3]
[322919134,1713504643046,-3720.0,0.000164,3]
[322919138,1713504658621,680.35641552,0.00014792,2]
[322919140,1713504716768,341.44,0.00013551,2]
[322919142,1713504780261,152.36,0.0001611,15]
[322919145,1713504970170,343.44,0.00015439,2]
[322919168,1713505157489,554.63,0.0001541,2]
[322919206,1713505211738,324.36,0.00013499,2]
[322919235,1713505330613,231.25647118,0.00013499,2]
[322919237,1713505343317,365.18989316,0.00013499,2]
[322919238,1713505345159,4505.46869172,0.00013499,2]
[322919240,1713505355362,1040.23535105,0.00015,2]
[322919242,1713505361433,5103.78794862,0.00013499,2]
[322919250,1713505371622,320.03816188,0.00015,2]
[322919259,1713505387380,42577.13410817,0.00015,2]
[322919267,1713505396241,942.44752511,0.00015,2]
[322919272,1713505405282,1634.44978869,0.00015,2]
[322919277,1713505413193,693.37007889,0.00015,2]
[322919308,1713505466075,228.62,0.00015407,2]
[322919311,1713505469782,17833.91068051,0.00015,2]
[322919313,1713505489161,152.36,0.0001611,15]
[322919316,1713505502984,1091.6,0.000282,120]
[322919351,1713505670593,556.29,0.00015396,2]
[322919358,1713505739440,345.36,0.00013472,2]
[322919361,1713505746698,782.5267193,0.00015,2]
[322919383,1713505831765,-208.1911832,0.00015559,2]
[322919384,1713505831774,-581.83016164,0.0001556,2]
[322919385,1713505831784,-475.83939496,0.0001556,2]
[322919386,1713505831794,-610.58262328,0.00015659,2]
[322919387,1713505831806,-889.41737672,0.00015659,2]
[322919388,1713505831816,-345.36,0.00015736,2]
[322919389,1713505831825,-150.0,0.00015941,2]
[322919390,1713505831835,-1250.0,0.00016,2]
[322919391,1713505831845,-528.0,0.00016164,2]
[322919392,1713505831856,-190.90960876,0.00016218,2]
[322919393,1713505831928,-3433.58539124,0.00016218,2]
[322919394,1713505831938,-1596.76415035,0.0001624,2]
[322919395,1713505831975,-1038.16067943,0.0001624,2]
[322919461,1713505838518,-4275.37370607,0.0001624,2]
[322919463,1713505838529,-505.8801408,0.0001624,2]
[322919531,1713505845787,-1506.48,0.0001624,2]
[322919533,1713505845799,-1618.35376798,0.0001624,2]
[322919565,1713505846082,-146.57289769,0.0001624,2]
[322919567,1713505846091,-423.03322,0.0001624,2]
[322919569,1713505846101,-2867.3718,0.000163,2]
[322919571,1713505846111,-656.0,0.000163,2]
[322919573,1713505846120,-150.0,0.000163,2]
[322919575,1713505846129,-928.64,0.000163,2]
[322919577,1713505846139,-499.99,0.000163,2]
[322919578,1713505846148,-1000.0,0.00016307,2]
[322919579,1713505846157,-5583.19193889,0.00016337,2]
[322919580,1713505846166,-15477.17651282,0.00016338,2]
[322919581,1713505846175,-234.89639498,0.00016338,2]
[322919582,1713505846184,-199.92644733,0.00016338,2]
[322919583,1713505846194,-7500.0,0.00016338,2]
[322919584,1713505846204,-157.54,0.0001639,3]
[322919585,1713505846213,-472.65,0.0001639,3]
[322919586,1713505846222,-157.041914,0.00016395,2]
[322919587,1713505846231,-157.041914,0.00016395,2]
[322919588,1713505846241,-157.041914,0.00016395,2]
[322919589,1713505846250,-157.041914,0.00016395,2]
[322919590,1713505846259,-157.041914,0.00016396,2]
[322919591,1713505846268,-157.041914,0.00016396,2]
[322919592,1713505846278,-157.041914,0.00016396,2]
[322919593,1713505846287,-157.041914,0.00016396,2]
[322919594,1713505846297,-157.041914,0.00016396,2]
[322919595,1713505846306,-157.041914,0.00016396,2]
[322919596,1713505846315,-157.041914,0.00016397,2]
[322919597,1713505846325,-157.041914,0.00016397,2]
[322919598,1713505846334,-157.041914,0.00016397,2]
[322919599,1713505846343,-157.041914,0.00016397,2]
[322919600,1713505846352,-157.041914,0.00016397,2]
[322919601,1713505846361,-157.041914,0.00016397,2]
[322919602,1713505846371,-157.041914,0.00016397,2]
[322919603,1713505846379,-157.041914,0.00016397,2]
[322919604,1713505846388,-157.041914,0.00016397,2]
[322919605,1713505846398,-157.041914,0.00016397,2]
[322919606,1713505846407,-157.041914,0.00016398,2]
[322919607,1713505846416,-157.041914,0.00016398,2]
[322919608,1713505846425,-157.041914,0.00016398,2]
[322919609,1713505846435,-157.041914,0.00016398,2]
[322919610,1713505846444,-157.041914,0.00016398,2]
[322919611,1713505846456,-157.041914,0.00016398,2]
[322919612,1713505846465,-157.041914,0.00016398,2]
[322919613,1713505846475,-157.041914,0.00016398,2]
[322919614,1713505846484,-2383.69524,0.00016398,2]
[322919615,1713505846493,-208.1911832,0.00016398,2]
[322919616,1713505846502,-1105.79207237,0.00016399,2]
[322919617,1713505846511,-206.9318143,0.00016399,2]
[322919618,1713505846520,-11775.1106723,0.00016399,2]
[322919619,1713505846530,-1243.81,0.00016399,2]
[322919620,1713505846539,-23569.89875572,0.00016399,2]
[322919621,1713505856736,749.15781556,0.00014758,2]
[322919622,1713505871852,183.39,0.00012414,2]
[322919634,1713505895593,162.66,0.00015489,2]
[322919648,1713505954939,587.41,0.00015451,2]
[322919649,1713505966196,117.042605,0.0001611,15]
[322919650,1713505966220,35.317395,0.0001611,15]
[322919651,1713505989751,163.0,0.00015401,2]
[322919652,1713506018972,268.26,0.00015413,2]
[322919653,1713506048338,3547.94259112,0.00018,15]
[322919655,1713506143104,155.0,0.00015502,2]
[322919656,1713506143155,3715.15192631,0.00015502,2]
[322919657,1713506143376,554.96,0.00015323,2]
[322919658,1713506144977,2290.65,0.00015323,2]
[322919659,1713506147050,208.1911832,0.00015502,2]
[322919660,1713506167472,4911.0,0.00015338,2]
[322919661,1713506177004,250.0,0.00015413,2]
[322919663,1713506222360,150.0,0.00015502,2]
[322919665,1713506228521,208.1911832,0.00015502,2]
[322919667,1713506339090,200.0,0.00015311,2]
[322919669,1713506350735,163.77005438,0.00015455,2]
[322919670,1713506378713,500.0,0.00015264,2]
[322919671,1713506441268,410.54,0.00013394,2]
[322919672,1713506441309,5000.0,0.000282,120]
[322919674,1713506479731,5090.0,0.000282,120]
[322919675,1713506519680,283.89545907,0.000155,2]
[322919677,1713506536247,155.03,0.0001534,2]
[322919679,1713506617585,556.03,0.00015216,2]
[322919680,1713506638939,7130.80983938,0.00015502,2]
[322919681,1713506649073,183.39,0.00012173,2]
[322919682,1713506670137,3000.0,0.000155,2]
[322919683,1713506672808,208.1911832,0.00015502,2]
[322919684,1713506692522,3000.0,0.000155,2]
[322919687,1713506761744,3000.0,0.000155,2]
[322919688,1713506780593,3000.0,0.000155,2]
[322919689,1713506786554,3000.0,0.000155,2]
[322919693,1713506898802,3000.0,0.000155,2]
[322919700,1713506953604,424.72,0.00013379,2]
[322919702,1713506970170,391.61,0.00015282,2]
[322919711,1713507023215,155.03,0.00015399,2]
[322919738,1713507031777,-561.51132701,0.00015545,2]
[322919740,1713507031840,-1149.86250347,0.00015545,2]
[322919741,1713507031933,-650.8,0.00015545,2]
[322919742,1713507031988,-1136.40925582,0.00015545,2]
[322919743,1713507032004,-216.56884001,0.00015545,2]
[322919744,1713507032014,-208.1911832,0.00015545,2]
[322919745,1713507032023,-155.10976687,0.00015546,2]
[322919746,1713507032056,-373.91490421,0.00015546,2]
[322919747,1713507032067,-178.98559394,0.00015546,2]
[322919748,1713507032076,-184.21980074,0.00015556,2]
[322919749,1713507032113,-2030.24543224,0.00015556,2]
[322919750,1713507032123,-163.77005437,0.00015624,2]
[322919751,1713507032132,-424.72,0.00015642,2]
[322919752,1713507032142,-163.77005437,0.00015793,2]
[322919753,1713507032151,-155.03,0.000158,2]
[322919754,1713507032160,-163.77005437,0.00015962,2]
[322919755,1713507032170,-1250.0,0.00016,2]
[322919757,1713507032179,-499.99,0.00016,2]
[322919759,1713507032189,-425.19,0.000161,2]
[322919761,1713507032198,-302.62,0.000161,2]
[322919763,1713507032207,-355.61,0.000161,2]
[322919765,1713507032216,-304.51,0.000161,2]